Cogmind - Beta 10.1 @@@ ROGUE MODE // 2020.10.24 @ 06:05:16 Player: Demise Result: Destroyed by D-53 Grenadier with Mini Grenade Launcher Performance ------------- Evolutions (0) 0 Regions Visited (2) 400 Robots Destroyed (25) 125 Value Destroyed (467) 467 Prototype IDs (0) 0 Alien Tech Used (0) 0 Bonus (0) 0 TOTAL SCORE: 992 Bonus ------- None Cogmind --------- Core Integrity 0/250 Matter 240/300 Energy 250/250 System Corruption 0% Temperature Cool (7) Movement Treading (180) Ox1 Location -10/Mines Parts ------- > --- POWER (1) -------- Ion Engine > --- PROPULSION (2) --- Light Treads Light Treads > --- UTILITY (2) ------ High-capacity Storage Unit High-capacity Storage Unit > --- WEAPON (2) ------- Light Assault Rifle Light Cannon > --- INVENTORY (20) --- Light Nuclear Core Light Nuclear Core Improved Heat Sink Improved Heat Sink Small Storage Unit High-capacity Matter Pod (200) Sensor Array Improved Terrain Scanner Targeting Computer Power Shielding Power Shielding Power Shielding Assault Rifle Assault Rifle Assault Rifle Assault Rifle Light Assault Rifle Light Assault Rifle Mining Laser Peak State ------------ > --- POWER ------------ Ion Engine > --- PROPULSION ------- Aluminum Leg Aluminum Leg > --- UTILITY ---------- High-capacity Storage Unit High-capacity Storage Unit > --- WEAPON ----------- Small Laser Small Laser > --- INVENTORY -------- Ion Engine Light Treads Light Treads Small Storage Unit High-capacity Matter Pod Sensor Array Improved Terrain Scanner Targeting Computer Power Shielding Power Shielding Power Shielding Assault Rifle Light Assault Rifle Light Assault Rifle Light Assault Rifle Light Assault Rifle Light Assault Rifle Light Assault Rifle Mining Laser [Rating: 9] Favorites ----------- Power Ion Engine Engine Ion Engine Propulsion Aluminum Leg Treads Light Treads Leg Aluminum Leg Utility High-capacity Storage Unit Storage High-capacity Storage Unit Weapon Small Laser Energy Gun Small Laser Energy Cannon Beam Cannon Ballistic Gun Light Assault Rifle Ballistic Cannon Light Cannon Special Weapon Mining Laser Build | -11 -10 -10 ------- Run | Scr Mat Min Slots Evolved . | . . . Power . | . . . Propulsion . | . . . Utility . | . . . Weapon . | . . . Parts Attached 19 | . 17 2 Power 1 | . 1 . Engine 1 | . 1 . Core . | . . . Reactor . | . . . Propulsion 2 | . 2 . Treads 2 | . 2 . Leg . | . . . Wheel . | . . . Hover . | . . . Flight . | . . . Utility 2 | . 2 . Device . | . . . Storage 2 | . 2 . Processor . | . . . Hackware . | . . . Protection . | . . . Artifact . | . . . Weapon 14 | . 12 2 Energy Gun 5 | . 5 . Energy Cannon 1 | . 1 . Ballistic Gun 6 | . 4 2 Ballistic Cannon 1 | . 1 . Launcher . | . . . Special Weapon 1 | . 1 . Impact Weapon . | . . . Slashing Weapon . | . . . Piercing Weapon . | . . . Special Melee Weapon . | . . . Unidentified Prototypes . | . . . Parts Lost 6 | . 4 2 Power 1 | . 1 . Propulsion 1 | . 1 . Utility . | . . . Weapon 4 | . 2 2 Highest Loss Streak 2 | . 2 1 Average Slot Usage (%) 99 | . 99 100 Engine 14 | . 14 14 Treads 11 | . 6 28 Leg 16 | . 21 . Storage 27 | . 27 28 Energy Gun 13 | . 14 10 Energy Cannon 2 | . 2 . Ballistic Gun 6 | . 6 3 Ballistic Cannon 5 | . 2 14 Special Weapon 1 | . 1 . Naked Turns . | . . . Heaviest Build 73 | 12 73 73 Greatest Support 40 | 20 40 40 Greatest Overweight (x) 3 | . 3 1 Average Overweight (x) 1 | . 2 1 Largest Inventory Capacity 20 | 6 20 20 Average Capacity 18 | 6 18 20 Most Carried 20 | 6 20 20 Average Carried 17 | 5 17 19 Final Capacity 20 | 6 20 20 Final Carried 19 | 6 19 19 Class Distribution -------------------- 86% | Hauler-Mutant 13% | Mutant Dominant Class ---------------- Hauler-Mutant | -10/Materials Hauler-Mutant | -10/Mines Resources | -11 -10 -10 ----------- Run | Scr Mat Min Matter Collected 695 | 215 416 64 Remotely . | . . . Salvage Created 635 | 74 466 95 Parts 48 | 4 36 8 Haulers Intercepted . | . . . Recyclers Shooed . | . . . Parts Field Recycled . | . . . Retrieved Matter . | . . . Parts Self-Destructed . | . . . Prevented . | . . . Kills | -11 -10 -10 ------- Run | Scr Mat Min Combat Hostiles Destroyed 20 | . 15 5 Guns 17 | . 15 2 Cannons 3 | . . 3 Classes Destroyed 7 | 2 4 1 Worker 1 | . 1 . Tunneler 1 | 1 . . Recycler 1 | 1 . . Watcher 2 | . 2 . Swarmer 11 | . 9 2 Grunt 8 | . 6 2 Assembled 1 | . . 1 Best Kill Streak 10 | 2 10 2 Combat Bots Only 10 | . 10 2 Max Kills in Single Turn 2 | 1 2 1 Gunslinging 1 | . 1 . Exploded . | . . . Melee . | . . . Uniques/NPCs Destroyed . | . . . Combat | -11 -10 -10 -------- Run | Scr Mat Min Damage Taken 1280 | . 694 586 Core 277 | . 112 165 Absorbed by Shields . | . . . Core Remaining (%) 100 | 100 . . Volleys Fired 87 | 5 57 25 Largest 2 | 2 2 2 Hottest 100 | 60 100 75 Shots Fired 164 | 10 104 50 Gun 135 | 10 100 25 Cannon 26 | . 1 25 Launcher . | . . . Special 3 | . 3 . Kinetic 100 | 5 56 39 Thermal 51 | 5 35 11 Explosive . | . . . Electromagnetic 13 | . 13 . Robot Hit Streak 30 | 4 30 7 Robot Miss Streak 4 | 1 4 3 Penetration Max . | . . . Secondary Targets 3 | . 3 . Max Gunslinging Chain 1 | . 1 . Shots Hit Robots 103 | 6 68 29 Core Hits 45 | 3 33 9 Critical Hits . | . . . Critical Kills . | . . . Critical Parts Destroyed . | . . . Melee Attacks . | . . . Impact . | . . . Slashing . | . . . Piercing . | . . . Sneak Attacks . | . . . Combat Hostiles . | . . . Follow-up Attacks . | . . . Damage Inflicted 1088 | 74 661 353 Guns 894 | 74 661 159 Cannons 194 | . . 194 Explosions . | . . . Melee . | . . . Ramming . | . . . Kinetic 628 | 52 305 271 Thermal 313 | 22 209 82 Explosive . | . . . Electromagnetic 147 | . 147 . Impact . | . . . Slashing . | . . . Piercing . | . . . Highest Corruption . | . . . Average Corruption . | . . . Corruption Purged . | . . . Overload Shots . | . . . Overflow Damage . | . . . Projectiles . | . . . Explosions . | . . . Melee . | . . . Knockbacks 1 | . . 1 Impact . | . . . Kinetic 1 | . . 1 Secondary . | . . . Self-Inflicted Damage . | . . . Shots . | . . . Rammed . | . . . Targets Rammed . | . . . Kicked . | . . . Crushed . | . . . Highest Temperature 177 | . 174 177 Average Temperature 43 | . 41 48 Received Heat Transfer 384 | . 303 81 Siege Activations . | . . . Robots Corrupted . | . . . Combat Hostiles . | . . . Parts Fried . | . . . Impact Corruptions . | . . . Robots Melted . | . . . Combat Hostiles . | . . . Parts Melted 1 | . 1 . Heat Transferred 700 | 50 475 175 Parts Sabotaged . | . . . Parts Stolen . | . . . Parts Stripped . | . . . Power Chain Reactions . | . . . Missiles Intercepted . | . . . Alert | -11 -10 -10 ------- Run | Scr Mat Min Peak Influence 264 | 10 264 70 Initial 30 | . 6 30 Average 48 | 6 51 41 Maximum Alert Level 1 | . 1 . Low Security (%) 98 | 100 98 100 Level 1 1 | . 1 . Level 2 . | . . . Level 3 . | . . . Level 4 . | . . . Level 5 . | . . . High Security . | . . . Max Security . | . . . Squads Dispatched 1 | . 1 . Investigation 1 | . 1 . Extermination . | . . . Reinforcement . | . . . Assault . | . . . Garrison . | . . . Intercept . | . . . Construction Impeded . | . . . Haulers Reinforced . | . . . Stealth | -11 -10 -10 --------- Run | Scr Mat Min Distress Signals 1 | . 1 . Communications Jammed . | . . . Distress Signals . | . . . Times Spotted 45 | . 28 17 Peak Tracking Total 10 | . 10 7 Tactical Retreats 2 | . 2 . Traps | -11 -10 -10 ------- Run | Scr Mat Min Traps Triggered 1 | . 1 . Indirectly . | . . . Trap Hack Attempts . | . . . Triggered . | . . . Disarmed . | . . . Reprogrammed 4 | . 4 . Reused 1 | . 1 . Traps Extracted . | . . . Installed . | . . . Triggered 1 | . 1 . Machines | -11 -10 -10 ---------- Run | Scr Mat Min Machines Disabled . | . . . Max in Single Turn . | . . . Machines Sabotaged . | . . . Garrisons Compromised . | . . . Overloaded Fab Kills . | . . . Fab Network Shutdowns . | . . . Hacking | -11 -10 -10 --------- Run | Scr Mat Min Machines Accessed 9 | . 9 . Terminals 8 | . 8 . Fabricators . | . . . Repair Stations . | . . . Recycling Units 1 | . 1 . Scanalyzers . | . . . Garrison Access . | . . . Total Hacks 23 | . 23 . Successful 17 | . 17 . Failed 6 | . 6 . Catastrophic 1 | . 1 . Database Lockouts . | . . . Manual 22 | . 22 . Terminals 22 | . 22 . Fabricators . | . . . Repair Stations . | . . . Recycling Units 1 | . 1 . Scanalyzers . | . . . Garrison Access . | . . . Terminal Hacks 8 | . 8 . Part Schematic 2 | . 2 . Robot Analysis 2 | . 2 . Unreport Threat 1 | . 1 . Reprogram Traps 1 | . 1 . Hauler Manifests 1 | . 1 . Zone Layout 1 | . 1 . Fabricator Hacks . | . . . Repair Station Hacks . | . . . Recycling Unit Hacks 1 | . 1 . Report Inventory 1 | . 1 . Scanalyzer . | . . . Garrison Access Hacks . | . . . Unauthorized Hacks 8 | . 8 . Terminals 8 | . 8 . Track 1 | . 1 . Assimilate 1 | . 1 . Botnet 5 | . 5 . Operators 1 | . 1 . Fabricators . | . . . Repair Stations . | . . . Recycling Units . | . . . Scanalyzers . | . . . Garrison Access . | . . . Data Cores Recovered . | . . . Used . | . . . Hacking Detections 7 | . 7 . Full Trace Events . | . . . Feedback Events . | . . . Feedback Blocked . | . . . Robot Schematics Acquired . | . . . Robots Built . | . . . Matter . | . . . Time . | . . . Total Robot Build Rating . | . . . Part Schematics Acquired 2 | . 2 . Parts Built . | . . . Matter . | . . . Time . | . . . Total Part Build Rating . | . . . Parts Repaired . | . . . Time . | . . . Parts Recycled . | . . . Recycled Matter . | . . . Retrieved Matter . | . . . Retrieved Components . | . . . Parts Scanalyzed . | . . . Part Schematics Acquired . | . . . Parts Damaged . | . . . Bothacking | -11 -10 -10 ------------ Run | Scr Mat Min Used RIF Installer . | . . . Robots Hacked . | . . . Non-combat . | . . . Combat . | . . . Robot Hacks Applied . | . . . Relay Couplers Released . | . . . Robots Rewired . | . . . Allies Hacked . | . . . Hacks Repelled . | . . . Allies | -11 -10 -10 -------- Run | Scr Mat Min Total Allies 1 | . 1 . Largest Group 1 | . 1 1 Highest-Rated Group 10 | . 10 10 Highest-Rated Ally 10 | . 10 10 Total Orders 1 | . . 1 STAY 1 | . . 1 Ally Attacks . | . . . Total Damage . | . . . Kills . | . . . Allies Corrupted . | . . . Allies Melted . | . . . Intel | -11 -10 -10 ------- Run | Scr Mat Min Robot Analysis Total 2 | . 2 . Derelict Logs Recovered 2 | . . 2 Drone Launches . | . . . Drone Recoveries . | . . . Exploration | -11 -10 -10 ------------- Run | Scr Mat Min Turns Passed 2150 | 28 1592 530 Spaces Moved 958 | 9 697 252 Core . | . . . Treads 425 | . 173 252 Legs 533 | 9 524 . Wheels . | . . . Hover . | . . . Flight . | . . . Fastest Speed 120 | 120 120 180 Average Speed 189 | 120 193 180 Slowest Speed 210 | 120 210 180 Overloaded Moves . | . . . Propulsion Burnouts . | . . . Robots Hopped . | . . . Cave-ins Triggered . | . . . Exploration Rate (%) 50 | 2 99 50 Regions Visited 2 Branch Regions 1 Pre-discovered Areas . | . . . Known Exits Taken . | . . . Unknown Exits Taken 2 | 1 1 . Scrap Searched . | . . . Spaces Dug 2 | . 2 . Terrain Destroyed 3 | . 3 . Melee . | . . . Projectile 3 | . 3 . AOE . | . . . Terrain Rammed . | . . . Walls Destroyed . | . . . Machines Disabled . | . . . Actions | -11 -10 -10 --------- Run | Scr Mat Min Total 1144 | 17 843 284 Wait 44 | . 43 1 Move 956 | 8 696 252 Hop . | . . . Pick Up 26 | 2 21 3 Fast Attach 4 | . 4 . Attach 9 | . 7 2 Detach 1 | . 1 . Swap 6 | . 6 . Drop 11 | 2 8 1 Fire 87 | 5 57 25 Melee . | . . . Ram . | . . . Kick . | . . . Crush . | . . . Escape Stasis . | . . . Rewire . | . . . Trap . | . . . Miscellaneous . | . . . Route ------- -11/Scrapyard -10/Materials (discovered 4 exits: [*Mat x3] / [*Min]) -10/Mines (discovered 2 exits: [*Mat x2]) History --------- Turn | Location | Event 13 | -11/Scrapyard | Discovered new exit (range 1) 29 | -11/Scrapyard | Entered Materials 450 | -10/Materials | Destroyed 10 combat bots 611 | -10/Materials | Build established: Hauler-Mutant 689 | -10/Materials | Discovered new exit (range 4) 897 | -10/Materials | Discovered new exit (range 8) 1137 | -10/Materials | Discovered new exit (range 7) 1407 | -10/Materials | Discovered new exit (range 13) 1621 | -10/Materials | Entered Mines 1621 | -10/Mines | Accompanied by 1 ally 1666 | -10/Mines | Met a Derelict bent on vengeance 1674 | -10/Mines | Discovered new exit (range 12) 1787 | -10/Mines | Learned Materials stockpile data 1850 | -10/Mines | Discovered new exit (range 15) 1875 | -10/Mines | Core integrity fell below 50% 1935 | -10/Mines | Learned Materials non-interactive machine intel 2104 | -10/Mines | Assembled infested the area 2141 | -10/Mines | Core integrity fell below 20% 2151 | -10/Mines | Destroyed by D-53 Grenadier with Mini Grenade Launcher Last Messages --------------- 02122_ as-84364 destroyed. 02122_ as-95307 destroyed. 02122_ as-12773 destroyed. 02122_ as-64443 destroyed. 02123_ The unstable cave ceiling collapses. 02124_ as-87851 destroyed. 02124_ as-48234 destroyed. 02126_ R-06 Scavenger destroyed. 02126_ as-23206 destroyed. 02130_ as-61021 destroyed. 02133_ The unstable cave ceiling collapses. 02135_ D-53 Grenadier destroyed. 02138_ Destroyed Asb. Hover Unit. 02139_ The unstable cave ceiling collapses. 02141_ as-88922 destroyed. 02141_ Lgt. Assault Rifle destroyed. 02144_ The unstable cave ceiling collapses. 02147_ Destroyed Shock Absorption System. 02149_ R-06 Scavenger destroyed. 02150_ R-06 Scavenger collects Com. Wheel. Map ----- +----------------------------------------------------+ | #???????????????????????????????????????????? | | ????????????????????????????????????????????? | | ????????????????????????????????????????????? | | ????????????????????????????????????????????? | | ????????????????????????????????????????????? | | ????????????????????????????????????????????? | | ????????????????????????????????????????????? | | ????????????????????????????????????????????? | | ????????????????????????????????????????????? | | ????????????????????????????????????????????? | | ##??????????????????????????????????????????? | | #????????????????????????????##????????????? | | #????????????????????????#### #??????????? | | #???????????????????????? # ??????? | | #???????????????????????? # # ??????? | | ##??????????????????????# % # ???????? | | ##????????????????????? !d ????????? | | =#?????????????????????# ?????????? | | =% ##???????????????????? # ??????????? | | = ##???????????????????# ???????????? | | = ########?????????##### * #????????????? | | ##???????## %= #????????????? | | ##?????## #????????????? | | # =% ##????# ###??????????? | | # =% < ####### r ##?????????? | | ## @ #?????????? | | #### #?????????? | | # ##??## ## ##?????????? | | ## ##????## #### #####??????????? | | ?####??????########??## ##??????????????? | | ??????????????????????#######???????????????? | | | | | | | | | | | | | | | | | | | | | | | | | | | | | | | | | | | | | | | +----------------------------------------------------+ Best States ------------- Heat Dissipation 25 Energy Generation 10 Energy Capacity 250 Matter Stores 300 Matter Capacity 300 Sight Range 16 Terrain Scan Density 10 Evasion (%) 40 Recoil Reduction 2 Item Schematics ----------------- Hcp. Storage Unit | -10/Materials | Hacked Lrg. Storage Unit | -10/Materials | Hacked Robot Schematics ------------------ None Fabricated ------------ Nothing Alien Tech Used ----------------- None Achievements -------------- None Challenges ------------ None Game ------ Seed RefinerySiegeFrame Manual? 0 Play Time 00:17:02 Cumulative 39.4 hours Start 2020.10.24 @ 05:50:36 End 2020.10.24 @ 06:05:16 Sessions 1 Manual Loads 0 Difficulty Rogue Special Mode None Game No. 37 Rogue 37 Adventurer 0 Explorer 0 Win Type - Total 0 Types 0/0/0/0/0/0/0/0/0 Lore% 39 Gallery% 41 Achievement% 48 Wizard Run 0 Options --------- ASCII 0 Keyboard 1 Movement Numpad Keybinds 0 Fullscreen 1 Font 12/Terminus Map View 83x54 Tactical HUD 1 Map Filters NONE Filters NONE Steam 1 RUN: f92bf7ac-82fb-4f55-9747-b574880fe8e7